fUST/lending_fUST_20240901
["ID","MTS","AMOUNT","RATE_DAILY","PERIOD"]
[336809748,1725181865074,-500.0,0.00030684,31]
[336809749,1725181865083,-500.0,0.00030684,31]
[336809750,1725181865093,-500.0,0.00030684,31]
[336809751,1725181865102,-1039.88,0.00030684,31]
[336809752,1725181865111,-500.0,0.00030684,31]
[336809753,1725181865120,-503.56403588,0.00030684,31]
[336809754,1725181865129,-500.0,0.00030684,31]
[336809755,1725181865138,-500.0,0.00030684,31]
[336809756,1725181865147,-500.0,0.00030684,31]
[336809757,1725181865156,-500.0,0.00030684,31]
[336809758,1725181865166,-500.0,0.00030684,31]
[336809759,1725181865452,-768.34,0.00030684,31]
[336809760,1725181865473,-500.0,0.00030684,31]
[336809761,1725181865488,-500.0,0.00030684,31]
[336809762,1725181865498,-500.0,0.00030684,31]
[336809763,1725181865508,-500.0,0.00030684,31]
[336809764,1725181865517,-500.0,0.00030684,31]
[336809765,1725181865528,-500.0,0.00030684,31]
[336809766,1725181865537,-500.0,0.00030684,31]
[336809767,1725181865547,-500.0,0.00030684,31]
[336809768,1725181865557,-1015.02,0.00030684,31]
[336809769,1725181865567,-500.0,0.00030684,31]
[336809770,1725181865577,-500.0,0.00030684,31]
[336809771,1725181865586,-500.0,0.00030684,31]
[336809772,1725181865595,-502.4822465,0.00030684,31]
[336809773,1725181865605,-500.0,0.00030684,31]
[336809774,1725181865614,-1165.41,0.00030684,31]
[336809775,1725181865624,-500.0,0.00030684,31]
[336809776,1725181865633,-325.03925116,0.00030684,31]
[336809777,1725181865642,-1138.56,0.00030684,31]
[336809778,1725181865652,-500.0,0.00030684,7]
[336809779,1725181865661,-500.0,0.00030684,31]
[336809780,1725181865670,-500.0,0.00030684,31]
[336809781,1725181865680,-606.52013561,0.00030684,31]
[336809782,1725181865689,-581.09978774,0.00030684,31]
[336809783,1725181865700,-500.0,0.00030684,31]
[336809784,1725181865710,-381.55556487,0.00030684,31]
[336809785,1725181865720,-972.59,0.00030684,31]
[336809786,1725181865730,-500.0,0.00030684,31]
[336809787,1725181865739,-500.0,0.00030684,31]
[336809788,1725181865749,-500.0,0.00030684,31]
[336809789,1725181865760,-505.03832466,0.00030684,31]
[336809790,1725181865769,-512.39,0.00030684,31]
[336809791,1725181865779,-500.0,0.00030684,31]
[336809792,1725181865789,-500.0,0.00030684,31]
[336809793,1725181865799,-500.0,0.00030684,31]
[336809794,1725181865809,-500.0,0.00030684,31]
[336809795,1725181865819,-500.0,0.00030684,31]
[336809796,1725181865828,-912.56,0.00030684,31]
[336809797,1725181865837,-500.0,0.00030684,31]
[336809798,1725181865846,-500.0,0.00030684,31]
[336809799,1725181865855,-631.20436985,0.00030684,31]
[336809800,1725181865864,-500.0,0.00030684,31]
[336809801,1725181865874,-585.89,0.00030684,31]
[336809802,1725181865883,-571.49169653,0.00030684,31]
[336809803,1725181865892,-500.0,0.00030684,31]
[336809804,1725181865901,-504.9045242,0.00030684,31]
[336809805,1725181865910,-500.0,0.00030684,31]
[336809806,1725181865920,-500.0,0.00030684,31]
[336809807,1725181865929,-500.0,0.00030684,31]
[336809808,1725181865938,-1066.69,0.00030684,31]
[336809809,1725181865947,-500.0,0.00030684,31]
[336809810,1725181865957,-508.97933589,0.00030684,31]
[336809811,1725181865966,-500.0,0.00030684,31]
[336809812,1725181865976,-500.0,0.00030684,31]
[336809813,1725181865986,-500.0,0.00030684,31]
[336809814,1725181865996,-629.37,0.00030684,31]
[336809815,1725181866006,-500.0,0.00030684,31]
[336809816,1725181866016,-500.0,0.00030684,31]
[336809817,1725181866026,-500.0,0.00030684,31]
[336809818,1725181866035,-500.0,0.00030684,31]
[336809819,1725181866045,-500.0,0.00030684,31]
[336809820,1725181866056,-500.0,0.00030684,31]
[336809821,1725181866066,-500.0,0.00030684,31]
[336809822,1725181866076,-500.0,0.00030684,31]
[336809823,1725181866086,-500.0,0.00030684,31]
[336809824,1725181866096,-839.39,0.00030684,31]
[336809825,1725181866106,-700.14,0.00030684,31]
[336809826,1725181866115,-500.0,0.00030684,31]
[336809827,1725181866125,-500.0,0.00030684,31]
[336809828,1725181866135,-500.0,0.00030684,31]
[336809829,1725181866145,-547.77,0.00030684,31]
[336809830,1725181866154,-500.0,0.00030684,31]
[336809831,1725181866165,-500.0,0.00030684,31]
[336809832,1725181866174,-500.0,0.00030684,31]
[336809833,1725181866183,-500.0,0.00030684,31]
[336809834,1725181866193,-500.0,0.00030684,31]
[336809835,1725181866202,-500.0,0.00030684,31]
[336809836,1725181866211,-500.0,0.00030684,31]
[336809837,1725181866221,-500.0,0.00030684,31]
[336809838,1725181866231,-500.0,0.00030684,31]
[336809839,1725181866240,-500.0,0.00030684,31]
[336809840,1725181866249,-500.0,0.00030684,31]
[336809841,1725181866260,-500.0,0.00030684,31]
[336809842,1725181866270,-500.0,0.00030684,31]
[336809843,1725181866280,-500.0,0.00030684,31]
[336809844,1725181866290,-752.52,0.00030684,31]
[336809845,1725181866300,-238.29569263,0.00030684,31]
[336809846,1725181866310,-500.0,0.00030684,31]
[336809847,1725181866319,-500.0,0.00030684,31]
[336809848,1725181866329,-501.58,0.00030684,31]
[336809849,1725181866338,-500.0,0.00030684,31]
[336809850,1725181866350,-200.0,0.00030684,7]
[336809851,1725181866359,-500.0,0.00030684,31]
[336809852,1725181866369,-669.87,0.00030684,31]
[336809853,1725181866378,-500.0,0.00030684,31]
[336809854,1725181866388,-500.0,0.00030684,31]
[336809855,1725181866399,-500.0,0.00030684,31]
[336809856,1725181866408,-500.0,0.00030684,31]
[336809857,1725181866418,-1450.31,0.00030684,31]
[336809858,1725181866430,-500.0,0.00030684,31]
[336809859,1725181866439,-500.0,0.00030684,31]
[336809860,1725181866449,-1605.17,0.00030684,31]
[336809861,1725181866459,-818.86,0.00030684,31]
[336809862,1725181866468,-1475.25,0.00030684,31]
[336809863,1725181866478,-494.07982084,0.00030684,31]
[336809879,1725182841144,-164.0,0.00022,2]
[336809880,1725182841167,-192.871326,0.00027489,2]
[336809881,1725182841189,-168.314099,0.00027891,2]
[336809882,1725182841212,-168.314099,0.00028133,2]
[336809883,1725182841235,-168.314099,0.00028375,2]
[336809884,1725182841256,-300.0,0.00028412,2]
[336809885,1725182841278,-23812.4706094,0.00028413,2]
[336809886,1725182841301,-168.314099,0.00028617,2]
[336809887,1725182841324,-168.314099,0.00028859,2]
[336809888,1725182841348,-168.314099,0.00029102,2]
[336809889,1725182841370,-168.314099,0.00029344,2]
[336809890,1725182841390,-307.7598817,0.0002989,2]
[336809891,1725182841411,-153.0,0.0002989,2]
[336809892,1725182841432,-445.4098038,0.0002989,2]
[336809893,1725182841451,-306.0,0.0002989,2]
[336809894,1725182841473,-973.9882274,0.000299,2]
[336809895,1725182841493,-1089.23811583,0.00029926,2]
[336809896,1725182841513,-1000.0,0.0002994,2]
[336809897,1725182841533,-1089.23811583,0.00029954,2]
[336809898,1725182841555,-1089.23811583,0.00029981,2]
[336809899,1725182841576,-551.83,0.00029989,3]
[336809900,1725182841600,-963.38,0.00029989,3]
[336809901,1725182841620,-247.71,0.0002999,3]
[336809902,1725182841640,-206.43,0.0002999,3]
[336809903,1725182841661,-619.31,0.0002999,3]
[336809904,1725182841682,-18653.3512559,0.0002999,4]
[336809905,1725182841702,-500.0,0.00029999,2]
[336809906,1725182841727,-622.68737494,0.00029999,2]
[336809907,1725182841749,-500.0,0.00029999,2]
[336809908,1725182841770,-500.0,0.00029999,2]
[336809909,1725182841792,-491.21950602,0.00029999,2]
[336809910,1725182841813,-534.22033788,0.00029999,2]
[336809911,1725182841833,-500.0,0.00029999,2]
[336809912,1725182841854,-500.0,0.00029999,2]
[336809913,1725182841874,-274.27351171,0.00029999,2]
[336809914,1725182841895,-500.0,0.00029999,2]
[336809915,1725182841917,-568.98615584,0.00029999,2]
[336809916,1725182841938,-500.0,0.00029999,2]
[336809917,1725182841960,-568.98615584,0.00029999,2]
[336809918,1725182841980,-500.0,0.00029999,2]
[336809919,1725182842001,-500.0,0.00029999,2]
[336809920,1725182842023,-568.98615584,0.00029999,2]
[336809921,1725182842044,-500.0,0.00029999,2]
[336809922,1725182842066,-568.98615584,0.00029999,2]
[336809923,1725182842087,-568.98615584,0.00029999,2]
[336809924,1725182842108,-500.0,0.00029999,2]
[336809925,1725182842129,-500.0,0.00029999,2]
[336809926,1725182842150,-568.98615584,0.00029999,2]
[336809927,1725182842172,-500.0,0.00029999,2]
[336809928,1725182842194,-568.98615584,0.00029999,2]
[336809929,1725182842215,-500.0,0.00029999,2]
[336809930,1725182842236,-568.98615584,0.00029999,2]
[336809931,1725182842257,-500.0,0.00029999,2]
[336809932,1725182842284,-568.98615584,0.00029999,2]
[336809933,1725182842306,-568.98615584,0.00029999,2]
[336809934,1725182842328,-500.0,0.00029999,2]
[336809935,1725182842350,-568.98615584,0.00029999,2]
[336809936,1725182842372,-568.98615584,0.00029999,2]
[336809937,1725182842394,-568.98615584,0.00029999,2]
[336809938,1725182842415,-568.98615584,0.00029999,2]
[336809939,1725182842437,-568.98615584,0.00029999,2]
[336809940,1725182842461,-568.98615584,0.00029999,2]
[336809941,1725182842481,-568.98615584,0.00029999,2]
[336809942,1725182842503,-568.98615584,0.00029999,2]
[336809943,1725182842524,-568.98615584,0.00029999,2]
[336809944,1725182842545,-568.98615584,0.00029999,2]
[336809945,1725182842567,-568.98615584,0.00029999,2]
[336809946,1725182842588,-568.98615584,0.00029999,2]
[336809947,1725182842611,-568.98615584,0.00029999,2]
[336809948,1725182842634,-568.98615584,0.00029999,2]
[336809949,1725182842656,-568.98615584,0.00029999,2]
[336809950,1725182842678,-568.98615584,0.00029999,2]
[336809951,1725182842699,-568.98615584,0.00029999,2]
[336809952,1725182842725,-568.98615584,0.00029999,2]
[336809953,1725182842747,-568.98615584,0.00029999,2]
[336809954,1725182842770,-568.98615584,0.00029999,2]
[336809955,1725182842792,-568.98615584,0.00029999,2]
[336809956,1725182842814,-568.98615584,0.00029999,2]
[336809957,1725182842835,-568.98615584,0.00029999,2]
[336809958,1725182842857,-568.98615584,0.00029999,2]
[336809959,1725182842881,-568.98615584,0.00029999,2]
[336809960,1725182842905,-568.98615584,0.00029999,2]
[336809961,1725182842927,-568.98615584,0.00029999,2]
[336809962,1725182842948,-568.98615584,0.00029999,2]
[336809963,1725182842969,-568.98615584,0.00029999,2]
[336809964,1725182842990,-568.98615584,0.00029999,2]
[336809965,1725182843011,-568.98615584,0.00029999,2]
[336809966,1725182843032,-568.98615584,0.00029999,2]
[336809967,1725182843053,-568.98615584,0.00029999,2]
[336809968,1725182843074,-568.98615584,0.00029999,2]
[336809969,1725182843095,-568.98615584,0.00029999,2]
[336809970,1725182843116,-568.98615584,0.00029999,2]
[336809971,1725182843137,-568.98615584,0.00029999,2]
[336809972,1725182843157,-568.98615584,0.00029999,2]
[336809973,1725182843178,-568.98615584,0.00029999,2]
[336809974,1725182843199,-568.98615584,0.00029999,2]
[336809975,1725182843220,-568.98615584,0.00029999,2]
[336809976,1725182843241,-568.98615584,0.00029999,2]
[336809977,1725182843264,-568.98615583,0.00029999,2]
[336809978,1725182843285,-568.98615583,0.00029999,2]
[336809979,1725182843307,-568.98615583,0.00029999,2]
[336809980,1725182843331,-568.98615583,0.00029999,2]
[336809981,1725182843356,-568.98615583,0.00029999,2]
[336809982,1725182843377,-568.98615583,0.00029999,2]
[336809983,1725182843399,-568.98615583,0.00029999,2]
[336809984,1725182843420,-568.98615583,0.00029999,2]
[336809985,1725182843442,-568.98615583,0.00029999,2]
[336809986,1725182843465,-568.98615583,0.00029999,2]
[336809987,1725182843487,-568.98615583,0.00029999,2]
[336809988,1725182843509,-568.98615583,0.00029999,2]
[336809989,1725182843531,-568.98615583,0.00029999,2]
[336809990,1725182843554,-568.98615583,0.00029999,2]
[336809991,1725182843576,-568.98615583,0.00029999,2]
[336809992,1725182843600,-568.98615583,0.00029999,2]
[336809993,1725182843622,-568.98615583,0.00029999,2]
[336809994,1725182843643,-568.98615583,0.00029999,2]
[336809995,1725182843666,-568.98615583,0.00029999,2]
[336809996,1725182843688,-568.98615583,0.00029999,2]
[336809997,1725182843710,-568.98615583,0.00029999,2]
[336809998,1725182843735,-568.98615583,0.00029999,2]
[336809999,1725182843757,-568.98615583,0.00029999,2]
[336810000,1725182843779,-568.98615583,0.00029999,2]
[336810001,1725182843802,-568.98615583,0.00029999,2]
[336810002,1725182843826,-568.98615583,0.00029999,2]
[336810003,1725182843849,-568.98615583,0.00029999,2]
[336810004,1725182843871,-568.98615583,0.00029999,2]
[336810005,1725182843893,-568.98615583,0.00029999,2]
[336810006,1725182843915,-568.98615583,0.00029999,2]
[336810007,1725182843936,-568.98615583,0.00029999,2]
[336810008,1725182843958,-568.98615583,0.00029999,2]
[336810009,1725182843980,-568.98615585,0.00029999,2]
[336810010,1725182844002,-568.98615585,0.00029999,2]
[336810011,1725182844023,-568.98615585,0.00029999,2]
[336810012,1725182844045,-30726.83156697,0.0003,5]
[336810017,1725182897016,16488.61267118,0.0002,2]
[336810025,1725182920129,12592.97235622,0.0001999,2]
[336810071,1725183038021,-300.0,0.00020376,2]
[336810072,1725183038031,-300.0,0.00020376,2]
[336810073,1725183038041,-47117.2884166,0.00020377,2]
[336810074,1725183038051,-258.83852988,0.00021,2]
[336810075,1725183038061,-10159.37910438,0.00021,2]
[336810076,1725183038071,-233.26314136,0.00021,2]
[336810077,1725183038084,-2070.96465134,0.00022,2]
[336810078,1725183038094,-1010.80920533,0.00022,2]
[336810079,1725183038104,-158.0,0.00022,2]
[336810080,1725183038115,-7601.8052376,0.00022252,2]
[336810081,1725183038126,-1315.55655184,0.000223,2]
[336810082,1725183038137,-420.0,0.00022414,2]
[336810083,1725183038147,-239.85909664,0.00023,2]
[336810084,1725183038160,-11416.97879633,0.00023,2]
[336810085,1725183038170,-158.0,0.00023014,2]
[336810086,1725183038179,-500.0,0.000235,2]
[336810087,1725183038189,-741.42708398,0.00024048,2]
[336810088,1725183038201,-587.0,0.00024655,2]
[336810089,1725183038212,-412.86,0.0002499,3]
[336810090,1725183038221,-802.81,0.0002499,3]
[336810091,1725183038233,-669.01,0.0002499,3]
[336810092,1725183038243,-557.51,0.0002499,3]
[336810093,1725183038254,-500.0,0.00024999,2]
[336810094,1725183038265,-474.91927908,0.00024999,2]
[336810095,1725183038275,-500.0,0.00024999,2]
[336810096,1725183038285,-500.0,0.00024999,2]
[336810097,1725183038294,-500.0,0.00024999,2]
[336810098,1725183038304,-500.0,0.00024999,2]
[336810099,1725183038313,-500.0,0.00024999,2]
[336810100,1725183038323,-500.0,0.00024999,2]
[336810101,1725183038332,-500.0,0.00024999,2]
[336810102,1725183038342,-500.0,0.00024999,2]
[336810103,1725183038352,-500.0,0.00024999,2]
[336810104,1725183038361,-500.0,0.00024999,2]
[336810105,1725183038371,-503.80225976,0.00024999,2]
[336810106,1725183038381,-500.0,0.00024999,2]
[336810107,1725183038390,-500.0,0.00024999,2]
[336810108,1725183038400,-500.0,0.00024999,2]
[336810109,1725183038410,-500.0,0.00024999,2]
[336810110,1725183038419,-500.0,0.00024999,2]
[336810111,1725183038429,-500.0,0.00024999,2]
[336810112,1725183038439,-500.0,0.00024999,2]
[336810113,1725183038449,-500.0,0.00024999,2]
[336810114,1725183038459,-500.0,0.00024999,2]
[336810115,1725183038469,-500.0,0.00024999,2]
[336810116,1725183038479,-367.80930052,0.00024999,2]
[336810117,1725183038488,-500.0,0.00024999,2]
[336810118,1725183038497,-52099.0314831,0.00025,2]
[336810119,1725183038507,-43681.83860816,0.0002509,2]
[336810120,1725183038517,-823.0,0.0002712,2]
[336810121,1725183038526,-158.0,0.00028997,2]
[336810122,1725183038536,-755.0,0.00029833,2]
[336810123,1725183038547,-1209.27940854,0.0002985,20]
[336810124,1725183038557,-207.943127,0.0002989,2]
[336810125,1725183038566,-941.94386131,0.00029908,2]
[336810126,1725183038576,-279.59660078,0.00029998,2]
[336810127,1725183038585,-500.0,0.00029998,2]
[336810128,1725183038595,-500.0,0.00029998,2]
[336810129,1725183038605,-219.55392283,0.00029998,2]
[336810130,1725183038615,-500.0,0.00029998,2]
[336810131,1725183038625,-226.20996695,0.00029998,2]
[336810132,1725183038635,-500.0,0.00029998,2]
[336810133,1725183038645,-500.0,0.00029998,2]
[336810134,1725183038655,-500.0,0.00029998,2]
[336810135,1725183038665,-155.6142463,0.00029998,2]
[336810136,1725183038675,-500.0,0.00029998,2]
[336810137,1725183038687,-500.0,0.00029998,2]
[336810138,1725183038699,-500.0,0.00029998,2]
[336810139,1725183038709,-500.0,0.00029998,2]
[336810140,1725183038720,-500.0,0.00029998,2]
[336810141,1725183038731,-173219.6438,0.00029999,2]
[336810142,1725183038741,-41837.66843303,0.0003,5]
[336810143,1725183038753,-412.9,0.0003,31]
[336810144,1725183038763,-151.0,0.0003,120]
[336810145,1725183038773,-1089.23811583,0.00030009,2]
[336810146,1725183038784,-4319.65216897,0.00030036,120]
[336810147,1725183038794,-1089.23811583,0.00030036,2]
[336810148,1725183038805,-906.60047987,0.00030036,2]
[336810149,1725183038814,-13171.61005762,0.00030123,2]
[336810150,1725183038830,-26225.55225238,0.00030123,2]
[336810151,1725183038841,-3297.97034068,0.00030125,11]
[336810152,1725183038851,-10476.47740694,0.00030126,4]
[336810180,1725183039977,-13230.04517186,0.00030126,4]
[336810182,1725183039987,-7128.79502918,0.00030126,4]
[336810186,1725183040242,-27386.55230137,0.00030126,4]
[336810188,1725183042910,-4379.29849856,0.00030126,4]
[336810209,1725184036103,-192.871326,0.00028419,2]
[336810210,1725184036128,-300.0,0.00028464,2]
[336810211,1725184036148,-300.0,0.00028464,2]
[336810212,1725184036171,-24900.0,0.00028465,2]
[336810213,1725184036194,-250.0,0.00028766,2]
[336810214,1725184036216,-250.0,0.00028845,2]
[336810215,1725184036238,-250.0,0.00028924,2]
[336810216,1725184036259,-250.0,0.00029003,2]
[336810217,1725184036281,-250.0,0.00029082,2]
[336810218,1725184036302,-2004.06534239,0.00029111,2]
[336810219,1725184036327,-250.0,0.00029161,2]
[336810220,1725184036350,-5158.0994466,0.00029222,2]
[336810221,1725184036374,-250.0,0.0002924,2]
[336810222,1725184036400,-4402.6611941,0.00029278,15]
[336810223,1725184036424,-250.0,0.00029319,2]
[336810224,1725184036447,-250.0,0.00029398,2]
[336810225,1725184036468,-250.0,0.00029476,2]
[336810226,1725184036488,-150.91940202,0.00029534,2]
[336810227,1725184036509,-250.0,0.00029555,2]
[336810228,1725184036530,-5158.0994466,0.00029556,2]
[336810229,1725184036551,-250.0,0.00029634,2]
[336810230,1725184036572,-5158.0994467,0.00029673,2]
[336810231,1725184036780,-250.0,0.00029713,2]
[336810232,1725184036804,-250.0,0.00029792,2]
[336810233,1725184036825,-250.0,0.00029871,2]
[336810234,1725184036844,-1264.95796806,0.00029926,2]
[336810235,1725184036864,-2000.0,0.00029936,2]
[336810236,1725184036885,-250.0,0.0002995,2]
[336810237,1725184036909,-1264.95796806,0.00029954,2]
[336810238,1725184036933,-1264.95796806,0.00029981,2]
[336810239,1725184036958,-1000.0,0.0003,120]
[336810240,1725184036978,-1000.0,0.0003,90]
[336810241,1725184037002,-1000.0,0.0003,60]
[336810242,1725184037023,-1014.48,0.0003,30]
[336810243,1725184037045,-169.0,0.0003,2]
[336810244,1725184037068,-1264.95796806,0.00030009,2]
[336810245,1725184037090,-21978.5509731,0.00030016,4]
[336810246,1725184037115,-464.59,0.00030016,3]
[336810247,1725184037139,-387.16,0.00030016,3]
[336810248,1725184037164,-500.0,0.00030025,2]
[336810249,1725184037187,-500.0,0.00030025,2]
[336810250,1725184037213,-636.78093005,0.00030025,2]
[336810251,1725184037234,-64790.94944926,0.00030026,2]
[336810252,1725184037258,-43957.1019462,0.00030026,4]
[336810253,1725184037280,-250.0,0.00030029,2]
[336810254,1725184037301,-88888.0,0.00030036,5]
[336810255,1725184037322,-1264.95796806,0.00030036,2]
[336810256,1725184037345,-250.0,0.00030108,2]
[336810257,1725184037368,-1648.98517034,0.00030115,11]
[336810258,1725184037388,-195.71762054,0.00030115,2]
[336810259,1725184037409,-153.68774598,0.00030115,2]
[336810260,1725184037431,-500.0,0.00030115,2]
[336810261,1725184037452,-500.0,0.00030115,2]
[336810262,1725184037473,-500.0,0.00030115,2]
[336810263,1725184037494,-500.0,0.00030115,2]
[336810264,1725184037516,-508.34697687,0.00030115,2]
[336810265,1725184037539,-500.0,0.00030115,2]
[336810266,1725184037559,-608.92997241,0.00030115,2]
[336810267,1725184037580,-500.0,0.00030115,2]
[336810268,1725184037602,-500.0,0.00030115,2]
[336810269,1725184037623,-500.0,0.00030115,2]
[336810270,1725184037644,-500.0,0.00030115,2]
[336810271,1725184037665,-250.0,0.00030115,2]
[336810272,1725184037686,-19949.65442418,0.00030115,4]
[336810344,1725184239163,-232.977486,0.00028387,2]
[336810345,1725184239174,-235.175426,0.00028652,2]
[336810346,1725184239184,-400.0,0.00030015,2]
[336810347,1725184239194,-400.0,0.00030015,2]
[336810348,1725184239204,-18424.20922991,0.00030016,5]
[336810349,1725184239213,-332.7931355,0.0003002,2]
[336810350,1725184239223,-332.79313546,0.00030024,2]
[336810351,1725184239234,-2000.0,0.00030027,2]
[336810352,1725184239245,-332.79313546,0.00030028,2]
[336810353,1725184239256,-332.79313546,0.00030032,2]
[336810354,1725184239267,-815.94043191,0.00030036,2]
[336810355,1725184239282,-332.79313546,0.00030036,2]
[336810356,1725184239292,-322.63,0.00030116,3]
[336810357,1725184239302,-268.86,0.00030116,3]
[336810358,1725184239311,-224.05,0.00030116,3]
[336810359,1725184239324,-7112.0,0.0003012,2]
[336810360,1725184239334,-181.86454778,0.00030125,2]
[336810361,1725184239343,-62698.72206191,0.00030126,4]
[336810362,1725184239577,-96459.84839109,0.00030126,4]
[336810363,1725184239587,-35368.5712119,0.00030127,4]
[336810364,1725184239596,-500.0,0.00030135,2]
[336810365,1725184239607,-355.84288381,0.00030135,2]
[336810366,1725184239616,-501.25098069,0.00030135,2]
[336810367,1725184239625,-500.0,0.00030135,2]
[336810368,1725184239635,-500.0,0.00030135,2]
[336810369,1725184239645,-500.0,0.00030135,2]
[336810370,1725184239655,-500.0,0.00030135,2]
[336810371,1725184239665,-500.0,0.00030135,2]
[336810372,1725184239676,-500.0,0.00030135,2]
[336810373,1725184239685,-500.0,0.00030135,2]
[336810374,1725184239695,-824.49258517,0.00030136,11]
[336810375,1725184239706,-575.16,0.00030136,31]
[336810376,1725184239715,-500.0,0.00030136,31]
[336810377,1725184239725,-500.0,0.00030136,31]
[336810378,1725184239736,-500.0,0.00030136,31]
[336810379,1725184239745,-500.0,0.00030136,31]
[336810380,1725184239755,-501.64542158,0.00030136,31]
[336810381,1725184239765,-500.0,0.00030136,31]
[336810382,1725184239775,-522.73356696,0.00030136,31]
[336810383,1725184239784,-500.0,0.00030136,31]
[336810385,1725184239794,-500.0,0.00030136,31]
[336810386,1725184239805,-500.0,0.00030136,31]
[336810387,1725184239815,-500.0,0.00030136,31]
[336810388,1725184239824,-500.0,0.00030136,31]
[336810389,1725184239834,-181.06408415,0.00030136,31]
[336810390,1725184239845,-500.0,0.00030136,31]
[336810391,1725184239854,-250.93584247,0.00030136,31]
[336810403,1725184240295,-251.81665367,0.00030136,31]
[336810404,1725184240306,-503.44362046,0.00030136,31]
[336810405,1725184240318,-500.0,0.00030136,31]
[336810406,1725184240328,-500.0,0.00030136,31]
[336810407,1725184240338,-500.0,0.00030136,31]
[336810408,1725184240348,-500.0,0.00030136,31]
[336810409,1725184240358,-500.0,0.00030136,31]
[336810410,1725184240370,-623.83134346,0.00030136,31]
[336810411,1725184240379,-500.0,0.00030136,31]
[336810412,1725184240388,-500.0,0.00030136,31]
[336810413,1725184240398,-500.0,0.00030136,31]
[336810414,1725184240407,-500.0,0.00030136,31]
[336810415,1725184240416,-618.68,0.00030136,31]
[336810416,1725184240425,-392.50524189,0.00030136,31]
[336810417,1725184240434,-194.44568111,0.00030136,31]
[336810418,1725184240444,-500.0,0.00030136,31]
[336810419,1725184240453,-500.0,0.00030136,31]
[336810420,1725184240463,-500.0,0.00030136,31]
[336810421,1725184240472,-500.0,0.00030136,31]
[336810422,1725184240481,-500.0,0.00030136,31]
[336810423,1725184240491,-584.28633893,0.00030136,31]
[336810424,1725184240500,-640.55426065,0.00030136,31]
[336810425,1725184240509,-500.0,0.00030136,31]
[336810426,1725184240518,-500.0,0.00030136,31]
[336810427,1725184240527,-581.11134006,0.00030136,31]
[336810428,1725184240536,-572.8584381,0.00030136,31]
[336810429,1725184240545,-502.68892467,0.00030136,31]
[336810430,1725184240554,-500.0,0.00030136,31]
[336810431,1725184240565,-644.54,0.00030136,31]
[336810432,1725184240574,-500.0,0.00030136,31]
[336810433,1725184240583,-500.0,0.00030136,31]
[336810434,1725184240593,-500.0,0.00030136,31]
[336810435,1725184240602,-500.0,0.00030136,31]
[336810436,1725184240611,-526.35,0.00030136,31]
[336810437,1725184240622,-500.0,0.00030136,31]
[336810438,1725184240633,-1132.7,0.00030136,31]
[336810439,1725184240642,-500.0,0.00030136,31]
[336810440,1725184240651,-500.0,0.00030136,31]
[336810441,1725184240661,-500.0,0.00030136,31]
[336810442,1725184240671,-500.0,0.00030136,31]
[336810443,1725184240680,-1636.96,0.00030136,31]
[336810444,1725184240690,-500.0,0.00030136,31]
[336810445,1725184240700,-538.99492156,0.00030136,31]
[336810446,1725184240709,-456.10523102,0.00030136,31]
[336810447,1725184240719,-548.11719636,0.00030136,31]
[336810448,1725184240728,-500.0,0.00030136,31]
[336810449,1725184240738,-500.0,0.00030136,31]
[336810450,1725184240748,-500.0,0.00030136,31]
[336810451,1725184240757,-500.0,0.00030136,31]
[336810452,1725184240766,-500.0,0.00030136,31]
[336810453,1725184240775,-436.56310943,0.00030136,31]